Cogmind - Beta 13 @@@ ROGUE MODE // 2024.04.05 @ 23:13:13 Player: Big Tortoise Result: Destroyed by C-17 Slicer with Blade Saw Performance ------------- Evolutions (4) 2000 Regions Visited (9) 1800 Robots Destroyed (81) 405 Value Destroyed (3159) 3159 Prototype IDs (20) 400 Alien Tech Used (0) 0 Bonus (1015) 1015 TOTAL SCORE: 8779 Bonus ------- High Alert Combat Kills 46 Follower Combat Kills 140 Entered Garrisons 200 Used RIF Installer 500 Aligned with FarCom 300 Friendly Fire -171 Cogmind --------- Core Integrity 0/850 Matter 300/300 Energy 100/100 System Corruption 15% Temperature Cool (0) Movement Core (50) Location -6/Factory Parts ------- > --- POWER (1) -------- (None) > --- PROPULSION (4) --- (None) > --- UTILITY (7) ------ Armored Scrap Engine > --- WEAPON (3) ------- (None) > --- INVENTORY (5) ---- Small Storage Unit Latent Energy Streamer Remote Datajack Powered Hammer Peak State ------------ > --- POWER ------------ Angular-Ion Engine > --- PROPULSION ------- Hovering Gravmag-Compact Exoskeleton Wheel > --- UTILITY ---------- Armored Scrap Engine High-capacity Storage Unit Authchip [R/Combat] Relay Coupler [NC] Relay Coupler [Swarmer] Drone Bay > --- WEAPON ----------- Laser Plasma Construct/C Hvy. Ballistic Gauss Construct/C > --- INVENTORY -------- Improved Heat Sink Advanced Heat Sink Advanced Heat Sink Improved Cooling System Small Storage Unit Improved Sensor Array Authchip [R/Combat] Authchip [Armor] Recalibrator Latent Energy Streamer Heavy Plasma Cannon Remote Datajack Great Maul Powered Hammer [Rating: 64] Favorites ----------- Power Enhanced Nuclear Core Engine Constructs Power Core Enhanced Nuclear Core Propulsion Light Treads Treads Light Treads Wheel Compact Wheel Hover Unit Constructs Utility Medium Storage Unit Device Improved Terrain Scanner Storage Medium Storage Unit Processor Signal Interpreter Hackware Relay Coupler [Swarmer] Protection Light Armor Plating Weapon Gauss Rifle Energy Gun Arc Projector Energy Cannon Constructs Ballistic Gun Gauss Rifle Ballistic Cannon Assault Cannon Launcher Grenade Launcher Impact Weapon Powered Hammer Special Melee Weapon Improved Datajack Build | -11 -10 -10 -10 -9 -8 -8 -8 -8 -6 ------- Run | Yrd Mat Min Exi Min Mat Sto Gar Rec Fac Slots Evolved 8 | . . . . . 4 . . . 4 Power . | . . . . . . . . . . Propulsion 2 | . . . . . . . . . 2 Utility 5 | . . . . . 3 . . . 2 Weapon 1 | . . . . . 1 . . . . Parts Attached 116 | 8 4 . 6 . 36 12 10 20 20 Power 8 | 2 . . . . 4 . . 2 . Engine 4 | 2 . . . . 1 . . 1 . Core 4 | . . . . . 3 . . 1 . Reactor . | . . . . . . . . . . Propulsion 23 | 2 . . 1 . 8 2 . 4 6 Treads 11 | 2 . . . . 6 2 . . 1 Leg . | . . . . . . . . . . Wheel 12 | . . . 1 . 2 . . 4 5 Hover . | . . . . . . . . . . Flight . | . . . . . . . . . . Utility 52 | 2 3 . 3 . 12 5 5 9 13 Device 25 | 1 . . 2 . 5 2 1 3 11 Storage 5 | 1 1 . 1 . . . . 2 . Processor 2 | . 1 . . . 1 . . . . Hackware 5 | . . . . . . 1 2 2 . Protection 15 | . 1 . . . 6 2 2 2 2 Artifact . | . . . . . . . . . . Weapon 33 | 2 1 . 2 . 12 5 5 5 1 Energy Gun 8 | . . . . . 5 2 1 . . Energy Cannon 5 | . . . 1 . 1 1 1 1 . Ballistic Gun 12 | 2 1 . 1 . 3 1 3 1 . Ballistic Cannon 3 | . . . . . 2 . . 1 . Launcher 2 | . . . . . 1 1 . . . Special Weapon . | . . . . . . . . . . Impact Weapon 1 | . . . . . . . . . 1 Slashing Weapon . | . . . . . . . . . . Piercing Weapon . | . . . . . . . . . . Special Melee Weapon 2 | . . . . . . . . 2 . Unidentified Prototypes 7 | . . . 2 . 2 3 . . . Corrupted Parts 2 | . . . . . . . . 2 . System Corruption 4 | . . . . . . . . 4 . Parts Lost 28 | . . . . . 5 1 6 . 16 Power 3 | . . . . . 1 . 1 . 1 Propulsion 6 | . . . . . . . 1 . 5 Utility 10 | . . . . . 2 . 3 . 5 Weapon 9 | . . . . . 2 1 1 . 5 Highest Loss Streak 12 | . . . . . 1 1 5 . 12 To Critical Strikes . | . . . . . . . . . . Average Slot Usage (%) 90 | . 99 100 96 85 99 98 85 91 75 Engine 2 | . 14 14 12 . . . . 4 1 Core 5 | . . . . . 8 9 7 4 4 Treads 11 | . 28 28 23 14 17 16 14 . 2 Wheel 6 | . . . 4 14 . . . 16 10 Device 6 | . 2 . . . 8 7 8 1 10 Storage 8 | . 14 14 13 14 9 9 7 8 5 Processor 9 | . 3 14 14 14 17 18 9 . . Hackware 9 | . . . . . . 8 9 21 20 Protection 5 | . 7 . . . 9 2 6 10 1 Energy Gun 2 | . . . . . 8 . . . . Energy Cannon 1 | . . . . . . 1 6 . 2 Ballistic Gun 11 | . 27 28 26 28 12 17 14 8 . Ballistic Cannon 4 | . . . . . 5 7 . 8 3 Special Melee Weapon 1 | . . . . . . . . 4 4 Naked Turns . | . . . . . . . . . . Heaviest Build 70 | 14 18 18 18 13 39 38 38 69 70 Greatest Support 44 | 40 40 40 40 16 43 43 40 32 44 Greatest Overweight (x) 17 | . . . 1 . 2 1 1 3 17 Average Overweight (x) . | . . . . . . . . . 2 Largest Inventory Capacity 20 | 8 10 10 10 10 10 10 10 20 20 Average Capacity 13 | 7 8 10 9 10 10 10 8 18 19 Most Carried 16 | 2 7 7 10 10 10 10 10 16 14 Average Carried 8 | 1 5 7 7 9 8 9 7 11 8 Final Capacity 20 | 8 10 10 10 10 10 10 5 20 5 Final Carried 15 | 2 7 7 10 10 10 9 3 15 4 Scrap Engine Consumption 65 | . . . . . . . . . 65 Constructs Created 6 | . . . . . . . . . 6 Constructs Modified 14 | . . . . . . . . . 14 Class Distribution -------------------- 40% | Skirmisher 34% | Mutant 9% | Scavenger-Mutant 6% | Commander-Mutant 4% | Construct Dominant Class ---------------- Mutant | -10/Materials Mutant | -10/Mines Mutant | -10/Exiles Mutant | -9/Mines Skirmisher | -8/Materials Skirmisher | -8/Storage Skirmisher | -8/Garrison Commander-Mutant | -8/Recycling Mutant | -6/Factory Resources | -11 -10 -10 -10 -9 -8 -8 -8 -8 -6 ----------- Run | Yrd Mat Min Exi Min Mat Sto Gar Rec Fac Matter Collected 3163 | 207 175 . 11 107 961 566 139 528 469 Remotely 187 | . . . . . . . . 187 . Salvage Created 4042 | 46 199 . . 17 1129 510 636 473 1032 Parts 222 | 9 12 . . . 68 27 19 18 69 Haulers Intercepted 4 | . . . . . 4 . . . . Recyclers Shooed 3 | . . . . . . . . 3 . Parts Field Recycled . | . . . . . . . . . . Retrieved Matter . | . . . . . . . . . . Parts Self-Destructed . | . . . . . . . . . . Prevented . | . . . . . . . . . . Kills | -11 -10 -10 -10 -9 -8 -8 -8 -8 -6 ------- Run | Yrd Mat Min Exi Min Mat Sto Gar Rec Fac Combat Hostiles Destroyed 54 | . 4 . . 1 20 8 6 2 13 Guns 22 | . 4 . . 1 12 3 2 . . Cannons 24 | . . . . . 6 4 1 2 11 AOE 5 | . . . . . 2 1 2 . . Classes Destroyed 18 | 2 2 . . 1 7 2 . 1 3 Worker 5 | 1 . . . . 1 . . . 3 Builder 3 | . . . . . 1 2 . . . Tunneler 2 | 2 . . . . . . . . . Hauler 4 | . . . . . 4 . . . . Recycler 5 | . . . . . . 2 . 2 1 Mechanic 2 | . . . . . . 2 . . . Operator 3 | . . . . . 1 . . . 2 Watcher 4 | . 1 . . . 2 . 1 . . Swarmer 3 | . . . . . 3 . . . . Grunt 27 | . 4 . . . 9 8 6 . . Brawler 1 | . . . . . . . . 1 . Duelist 1 | . . . . . 1 . . . . Protector 1 | . . . . . . . . . 1 Sentry 8 | . . . . . 5 . . . 3 Specialist 3 | . . . . . . . . . 3 Hunter 6 | . . . . . 2 . . 1 3 Programmer 3 | . . . . . . . . . 3 Assembled 1 | . . . . 1 . . . . . Best Kill Streak 10 | 2 2 . . 1 4 10 4 2 3 Combat Bots Only 4 | . 2 . . 1 3 3 4 2 3 Max Kills in Single Turn 3 | 1 1 . . 1 2 3 2 1 2 Gunslinging . | . . . . . . . . . . Exploded 2 | . . . . . 1 1 2 . . Melee . | . . . . . . . . . . Uniques/NPCs Destroyed . | . . . . . . . . . . Combat | -11 -10 -10 -10 -9 -8 -8 -8 -8 -6 -------- Run | Yrd Mat Min Exi Min Mat Sto Gar Rec Fac Hostile Shots Fired 609 | . 13 . 7 . 131 38 101 25 294 Missed 159 | . 3 . 4 . 35 13 22 13 69 Damage Taken 7058 | . 129 . 40 . 1582 430 1295 153 3429 Core 1461 | . 60 . . . 245 . 274 27 855 Absorbed by Shields 56 | . . . . . . . 22 21 13 Regen/Repaired (Parts) 888 | . 34 . . . 92 225 . . 537 Core Remaining (%) 58 | 100 . . . 76 . . . . . Volleys Fired 266 | 13 16 . . 1 88 27 22 24 75 Largest 3 | 2 2 . . 2 3 3 3 2 3 Hottest 202 | 40 40 . . 40 159 121 121 72 202 Shots Fired 564 | 26 32 . . 2 224 82 55 41 102 Gun 324 | 26 32 . . 2 146 53 37 26 2 Cannon 235 | . . . . . 75 27 18 15 100 Launcher 5 | . . . . . 3 2 . . . Special . | . . . . . . . . . . Kinetic 428 | 26 32 . . 2 160 79 36 41 52 Thermal 78 | . . . . . 12 1 16 . 49 Explosive 5 | . . . . . 3 2 . . . Electromagnetic 53 | . . . . . 49 . 3 . 1 Robot Hit Streak 13 | 6 7 . . 7 13 9 5 9 8 Robot Miss Streak 8 | 3 2 . . . 4 6 3 6 8 Penetration Max 1 | . . . . . . 1 1 1 . Secondary Targets . | . . . . . . . . . . Shots Hit Robots 339 | 17 22 . . 2 114 46 30 41 67 Core Hits 190 | 7 14 . . 2 55 35 25 20 32 Critical Kills 2 | . . . . . . 1 . . 1 Critical Parts Destroyed 4 | . . . . . 1 . . 2 1 Critical Strikes 8 | . . . . . 3 1 . 2 2 Meltdown 1 | . . . . . . . . . 1 Destroy 4 | . . . . . 1 1 . 2 . Blast 2 | . . . . . 2 . . . . Smash 1 | . . . . . . . . . 1 Melee Attacks 35 | . . . . . . . . 16 19 Impact 2 | . . . . . . . . . 2 Slashing . | . . . . . . . . . . Piercing . | . . . . . . . . . . Sneak Attacks 18 | . . . . . . . . 12 6 Combat Hostiles 4 | . . . . . . . . 4 . Follow-up Attacks . | . . . . . . . . . . Damage Inflicted 8535 | 163 238 . . 21 2171 1594 1301 583 2464 Guns 3274 | 163 238 . . 21 1200 819 448 354 31 Cannons 3535 | . . . . . 652 365 168 229 2121 Explosions 1630 | . . . . . 319 410 685 . 216 Melee 72 | . . . . . . . . . 72 Ramming 24 | . . . . . . . . . 24 Kinetic 4905 | 163 238 . . 21 1402 1164 428 583 906 Thermal 1813 | . . . . . 199 20 163 . 1431 Explosive 542 | . . . . . 132 410 . . . Electromagnetic 1179 | . . . . . 438 . 710 . 31 Impact 72 | . . . . . . . . . 72 Slashing . | . . . . . . . . . . Piercing . | . . . . . . . . . . Highest Corruption 15 | . . . . . 4 4 9 13 15 Average Corruption 4 | . . . . . 2 4 5 9 1 Corruption Purged . | . . . . . . . . . . Corruption Blocked . | . . . . . . . . . . Effects 91 | . . . . . 14 10 12 39 16 Message Errors 22 | . . . . . 4 2 3 9 4 Matter Fused 19 | . . . . . 8 1 1 8 1 Heat Flow Errors 10 | . . . . . . 4 3 2 1 Energy Discharges 12 | . . . . . 1 . 1 7 3 Parts Rejected 1 | . . . . . . 1 . . . Data Loss (minor) 15 | . . . . . . 1 2 10 2 Data Loss (major) 2 | . . . . . 1 . . . 1 Misfires 4 | . . . . . . 1 . 3 . Alerts 1 | . . . . . . . . . 1 Misdirections 2 | . . . . . . . . . 2 Weapon Failures 3 | . . . . . . . 2 . 1 Overload Shots . | . . . . . . . . . . Overflow Damage 146 | . . . . . 43 29 4 . 70 Projectiles 72 | . . . . . 43 29 . . . Explosions 51 | . . . . . . . 4 . 47 Melee 23 | . . . . . . . . . 23 Knockbacks 33 | . . . . . 9 8 . 4 12 Impact . | . . . . . . . . . . Kinetic 30 | . . . . . 9 6 . 4 11 Secondary 3 | . . . . . . 2 . . 1 Self-Inflicted Damage 385 | . . . . . 79 24 57 . 225 Shots 7 | . . . . . 2 1 1 . 3 Rammed 10 | . . . . . . . . . 10 Targets Rammed 10 | . . . . . . . . . 10 Kicked . | . . . . . . . . . . Crushed . | . . . . . . . . . . Highest Temperature 422 | . 31 . . . 294 422 336 227 312 Average Temperature 93 | . 9 . . . 89 127 135 57 84 Received Heat Transfer 1578 | . 90 . . . 354 306 732 . 96 Effects 5 | . . . . . 1 3 . . 1 Shutdowns 2 | . . . . . . 2 . . . Energy Bleed 2 | . . . . . 1 . . . 1 Matter Decay 1 | . . . . . . 1 . . . Siege Activations . | . . . . . . . . . . Robots Corrupted 3 | . . . . . . . 3 . . Combat Hostiles 1 | . . . . . . . 1 . . Parts Fried 9 | . . . . . 1 . 3 . 5 Impact Corruptions 1 | . . . . . . . . . 1 Robots Melted 1 | . . . . . . . . . 1 Combat Hostiles 1 | . . . . . . . . . 1 Parts Melted 3 | . . . . . . . . . 3 Heat Transferred 1665 | . . . . . 457 37 296 . 875 Parts Sabotaged . | . . . . . . . . . . Parts Stolen . | . . . . . . . . . . Parts Stripped . | . . . . . . . . . . Power Chain Reactions 1 | . . . . . 1 . . . . Latent Energy Used 402 | . . . . . 200 . 202 . . LE Corruption 7 | . . . . . 3 . 4 . . Alert | -11 -10 -10 -10 -9 -8 -8 -8 -8 -6 ------- Run | Yrd Mat Min Exi Min Mat Sto Gar Rec Fac Peak Influence 599 | 15 155 5 . . 599 448 505 369 261 Initial 256 | . 9 5 . . . 237 226 222 256 Average 151 | 5 103 5 . . 140 278 334 183 141 Maximum Alert Level 2 | . . . . . 2 2 2 1 1 Low Security (%) 65 | 100 100 100 . 100 73 . . 52 71 Level 1 28 | . . . . . 13 94 75 47 28 Level 2 5 | . . . . . 13 5 25 . . Level 3 . | . . . . . . . . . . Level 4 . | . . . . . . . . . . Level 5 . | . . . . . . . . . . High Security . | . . . . . . . . . . Max Security . | . . . . . . . . . . Squads Dispatched 18 | . 1 . . . 5 4 . . 8 Investigation 5 | . 1 . . . 4 . . . . Extermination 3 | . . . . . . . . . 3 Reinforcement 7 | . . . . . 1 1 . . 5 Assault 2 | . . . . . . 2 . . . Garrison 1 | . . . . . . 1 . . . Intercept . | . . . . . . . . . . Searches Triggered . | . . . . . . . . . . Construction Impeded 1 | . . . . . . 1 . . . Haulers Reinforced . | . . . . . . . . . . Active Scanning Responses . | . . . . . . . . . . Cargo Convoy Interrupts 1 | . . . . . . . . . 1 Stealth | -11 -10 -10 -10 -9 -8 -8 -8 -8 -6 --------- Run | Yrd Mat Min Exi Min Mat Sto Gar Rec Fac Distress Signals 9 | . . . . . 7 . . . 2 Communications Jammed . | . . . . . . . . . . Distress Signals . | . . . . . . . . . . Times Spotted 122 | . 6 . 11 1 37 16 16 4 31 Peak Tracking Total 12 | . 2 . 11 1 5 5 6 3 12 Tactical Retreats 10 | . . . 2 . 5 . 3 . . Traps | -11 -10 -10 -10 -9 -8 -8 -8 -8 -6 ------- Run | Yrd Mat Min Exi Min Mat Sto Gar Rec Fac Traps Triggered 7 | . . . . . 2 . 2 . 3 Indirectly 1 | . . . . . . . 1 . . Trap Hack Attempts . | . . . . . . . . . . Triggered . | . . . . . . . . . . Disarmed . | . . . . . . . . . . Reprogrammed . | . . . . . . . . . . Reused . | . . . . . . . . . . Traps Extracted . | . . . . . . . . . . Installed . | . . . . . . . . . . Triggered 3 | . . . . . . . . . 3 Machines | -11 -10 -10 -10 -9 -8 -8 -8 -8 -6 ---------- Run | Yrd Mat Min Exi Min Mat Sto Gar Rec Fac Machines Disabled 17 | . . . . . 8 1 1 1 6 Max in Single Turn 4 | . . . . . 3 . 1 . 4 Garrison Relay 1 | . . . . . . . 1 . . Machines Repaired . | . . . . . . . . . . Machines Dismantled . | . . . . . . . . . . Machines Sabotaged . | . . . . . . . . . . Overloaded Fab Kills . | . . . . . . . . . . Hacking | -11 -10 -10 -10 -9 -8 -8 -8 -8 -6 --------- Run | Yrd Mat Min Exi Min Mat Sto Gar Rec Fac Machines Accessed 52 | . 6 . 3 . 14 6 2 12 9 Terminals 29 | . 3 . . . 10 4 2 6 4 Fabricators 2 | . . . . . . . . . 2 Repair Stations 5 | . 1 . . . 2 1 . . 1 Recycling Units 10 | . 2 . . . 1 . . 6 1 Scanalyzers 2 | . . . . . 1 . . . 1 Garrison Access 1 | . . . . . . 1 . . . Total Hacks 173 | . 14 . 26 . 48 19 2 39 25 Successful 99 | . 8 . 26 . 25 11 2 19 8 Failed 74 | . 6 . . . 23 8 . 20 17 Catastrophic 11 | . 1 . . . 3 1 . 2 4 Database Lockouts . | . . . . . . . . . . Manual 51 | . 8 . 1 . 19 4 . 16 3 Terminals 82 | . 9 . . . 28 11 2 23 9 Fabricators 7 | . . . . . . . . . 7 Repair Stations 16 | . 3 . . . 5 7 . . 1 Recycling Units 26 | . 2 . . . 4 . . 16 4 Scanalyzers 15 | . . . . . 11 . . . 4 Garrison Access 1 | . . . . . . 1 . . . Terminal Hacks 52 | . 3 . 26 . 8 4 2 6 3 Record 28 | . . . 26 . 1 . . . 1 Part Schematic 1 | . . . . . . . . . 1 Robot Analysis 6 | . 2 . . . 1 1 . 2 . Prototype ID Bank 6 | . 1 . . . 1 1 . 3 . Open Door 1 | . . . . . . 1 . . . Emergency Access Points 1 | . . . . . 1 . . . . Alert Level 3 | . . . . . 2 1 . . . Unreport Threat 1 | . . . . . 1 . . . . Locate Traps 1 | . . . . . . . . . 1 Recall Investigation 1 | . . . . . 1 . . . . Zone Layout 1 | . . . . . . . . 1 . Garrison Registry 1 | . . . . . . . 1 . . Security Stations 1 | . . . . . . . 1 . . Fabricator Hacks 3 | . . . . . . . . . 3 Network Status 1 | . . . . . . . . . 1 Load Schematic 1 | . . . . . . . . . 1 Build 1 | . . . . . . . . . 1 Repair Station Hacks 8 | . 2 . . . 3 3 . . . Scan Component 5 | . 1 . . . 2 2 . . . Repair 3 | . 1 . . . 1 1 . . . Recycling Unit Hacks 9 | . 1 . . . 1 . . 7 . Report Inventory 3 | . . . . . . . . 3 . Retrieve Matter 1 | . . . . . 1 . . . . Retrieve Components 5 | . 1 . . . . . . 4 . Scanalyzer 12 | . . . . . 11 . . . 1 Insert Component 6 | . . . . . 5 . . . 1 Analyze 6 | . . . . . 6 . . . . Garrison Access Hacks 1 | . . . . . . 1 . . . Unlock Access 1 | . . . . . . 1 . . . Unauthorized Hacks 14 | . 2 . . . 2 3 . 6 1 Terminals 9 | . 1 . . . 2 3 . 2 1 Botnet 9 | . 1 . . . 2 3 . 2 1 Fabricators . | . . . . . . . . . . Repair Stations . | . . . . . . . . . . Recycling Units 5 | . 1 . . . . . . 4 . Tunnel 5 | . 1 . . . . . . 4 . Scanalyzers . | . . . . . . . . . . Garrison Access . | . . . . . . . . . . Data Cores Recovered 2 | . . . . . 1 . . . 1 Used . | . . . . . . . . . . Hacking Detections 39 | . 4 . . . 12 4 1 9 9 Full Trace Events 3 | . . . . . 2 . . 1 . Feedback Events 1 | . . . . . 1 . . . . Corruption 1 | . . . . . 1 . . . . Feedback Blocked . | . . . . . . . . . . Robot Schematics Acquired . | . . . . . . . . . . Robots Built . | . . . . . . . . . . Authchips . | . . . . . . . . . . Time . | . . . . . . . . . . Total Robot Build Rating . | . . . . . . . . . . Part Schematics Acquired 6 | . . . . . 5 . . . 1 Parts Built 2 | . . . . . . . . . 2 Authchips 1 | . . . . . . . . . 1 Time 47 | . . . . . . . . . 47 Total Part Build Rating 10 | . . . . . . . . . 10 Parts Repaired 3 | . 1 . . . 1 1 . . . Time 123 | . 26 . . . 44 53 . . . Parts Recycled . | . . . . . . . . . . Recycled Matter . | . . . . . . . . . . Retrieved Matter 188 | . . . . . 188 . . . . Retrieved Components 16 | . 9 . . . . . . 7 . Parts Scanalyzed 6 | . . . . . 5 . . . 1 Part Schematics Acquired 5 | . . . . . 5 . . . . Parts Damaged 1 | . . . . . . . . . 1 Bothacking | -11 -10 -10 -10 -9 -8 -8 -8 -8 -6 ------------ Run | Yrd Mat Min Exi Min Mat Sto Gar Rec Fac Used RIF Installer 1 | . . . . . . . 1 . . Robots Hacked 9 | . . . . . . . . 5 4 Non-combat 9 | . . . . . . . . 5 4 Combat . | . . . . . . . . . . Robot Hacks Applied 15 | . . . . . . . . 6 9 parse_system 5 | . . . . . . . . 3 2 no_distress 1 | . . . . . . . . . 1 map_earth 1 | . . . . . . . . . 1 find_fabricator 1 | . . . . . . . . . 1 drop_inventory 1 | . . . . . . . . . 1 find_recycling 1 | . . . . . . . . . 1 ignore_parts 2 | . . . . . . . . 2 . map_route 1 | . . . . . . . . . 1 mark_security 1 | . . . . . . . . . 1 redirect_shields 1 | . . . . . . . . 1 . Relay Couplers Released 3 | . . . . . . . 3 . . Machine Destruction 3 | . . . . . . . 3 . . Attached 2 | . . . . . . . 2 . . Fabnet Peak Effective % . | . . . . . . . . . . Robots Rewired 6 | . . . . . . . . 6 . Allies Hacked . | . . . . . . . . . . Hacks Repelled . | . . . . . . . . . . Allies | -11 -10 -10 -10 -9 -8 -8 -8 -8 -6 -------- Run | Yrd Mat Min Exi Min Mat Sto Gar Rec Fac Total Allies 8 | . . . . . . 2 . 6 . Largest Group 5 | . . . . . . 2 . 5 2 Highest-Rated Group 69 | . . . . . . 62 . 69 30 Highest-Rated Ally 31 | . . . . . . 31 . 27 24 Total Orders 2 | . . . 1 . . . . . 1 EXPLORE 2 | . . . 1 . . . . . 1 Ally Attacks 40 | . . . . . . 26 . 14 . Total Damage 492 | . . . . . . 401 . 91 . Kills 4 | . . . . . . 3 . 1 . Allies Corrupted . | . . . . . . . . . . Allies Melted . | . . . . . . . . . . Intel | -11 -10 -10 -10 -9 -8 -8 -8 -8 -6 ------- Run | Yrd Mat Min Exi Min Mat Sto Gar Rec Fac Robot Analysis Total 6 | . 2 . . . 1 1 . 2 . Derelict Logs Recovered 1 | . . . . 1 . . . . . Drone Launches 3 | . . . 1 . . . . . 2 Drone Recoveries . | . . . . . . . . . . Exploration | -11 -10 -10 -10 -9 -8 -8 -8 -8 -6 ------------- Run | Yrd Mat Min Exi Min Mat Sto Gar Rec Fac Turns Passed 8923 | 150 445 26 521 542 2808 562 384 1228 2257 Spaces Moved 4647 | 63 220 16 363 321 1049 222 242 913 1238 Core 269 | 3 . . . . . . 132 80 54 Treads 1862 | 60 220 16 208 . 1026 222 110 . . Legs . | . . . . . . . . . . Wheels 2493 | . . . 155 321 23 . . 833 1161 Hover 23 | . . . . . . . . . 23 Flight . | . . . . . . . . . . Fastest Speed 50 | 50 160 160 100 100 115 165 50 50 50 Average Speed 135 | 154 160 160 138 100 165 178 105 110 130 Slowest Speed 900 | 160 160 160 160 100 240 240 170 145 900 Overloaded Moves . | . . . . . . . . . . Propulsion Burnouts . | . . . . . . . . . . Robots Hopped . | . . . . . . . . . . Cave-ins Triggered . | . . . . . . . . . . Exploration Rate (%) 47 | 3 42 3 76 64 79 42 40 99 24 Regions Visited 9 Branch Regions 5 Pre-discovered Areas 6 | . 1 1 . . . . . 4 . Known Exits Taken 6 | . 1 1 1 1 1 1 . . . Unknown Exits Taken 2 | 1 . . . . . . . 1 . Scrap Searched 3 | . . . . 3 . . . . . Spaces Dug 14 | . . . . . 7 . . . 7 Terrain Destroyed 245 | . . . . . 155 18 2 . 70 Melee . | . . . . . . . . . . Projectile 58 | . . . . . 27 4 2 . 25 AOE 187 | . . . . . 128 14 . . 45 Terrain Rammed . | . . . . . . . . . . Walls Destroyed . | . . . . . . . . . . Machines Disabled . | . . . . . . . . . . Actions | -11 -10 -10 -10 -9 -8 -8 -8 -8 -6 --------- Run | Yrd Mat Min Exi Min Mat Sto Gar Rec Fac Total 6781 | 88 283 17 381 540 1940 326 329 1091 1786 Wait 1527 | 4 39 2 1 217 737 59 39 70 359 Move 4637 | 62 219 15 362 320 1048 221 240 912 1238 Hop . | . . . . . . . . . . Pick Up 52 | 1 4 . 4 1 16 1 3 11 11 Fast Attach 45 | 7 2 . 5 . 8 5 1 10 7 Attach 36 | . . . . . 12 2 7 4 11 Detach 18 | . 1 . 1 . 2 2 3 3 6 Swap 35 | 1 2 . 1 . 16 5 2 6 2 Drop 62 | . . . 5 1 13 4 11 5 23 Fire 266 | 13 16 . . 1 88 27 22 24 75 Melee 35 | . . . . . . . . 16 19 Ram 11 | . . . . . . . . . 11 Kick . | . . . . . . . . . . Crush . | . . . . . . . . . . Escape Stasis 25 | . . . . . . . 1 . 24 Rewire 32 | . . . 2 . . . . 30 . Trap . | . . . . . . . . . . Miscellaneous . | . . . . . . . . . . Route ------- -11/Scrapyard -10/Materials (discovered 2 exits: *Mat / *Min) -10/Mines -10/Exiles -9/Mines -8/Materials (discovered 4 exits: *Fac x3 / *Sto) -8/Storage -8/Garrison (discovered 3 exits: *Rec x3) -8/Recycling -6/Factory (discovered 2 exits: [*Fac x2]) History --------- Turn | Location | Event 19 | -11/Scrapyard | Discovered new exit (range 16) 151 | -11/Scrapyard | Entered Materials 307 | -10/Materials | Build established: Mutant 468 | -10/Materials | Discovered new exit (range 5) 477 | -10/Materials | Identified exit to Materials 497 | -10/Materials | Discovered new exit (range 15) 527 | -10/Materials | Identified exit to Mines 569 | -10/Materials | Repaired Assault Rifle 596 | -10/Materials | Entered Mines 597 | -10/Mines | Learned location of Storage (-8) 616 | -10/Mines | Deemed a non-threat by the Exiles lab entrance 616 | -10/Mines | Discovered new exit (range 5) 621 | -10/Mines | Identified exit to Exiles 622 | -10/Mines | Entered Exiles 662 | -10/Exiles | Met 8R-AWN 690 | -10/Exiles | Met EX-HEX 759 | -10/Exiles | Met EX-BIN 783 | -10/Exiles | Aligned with FarCom system 784 | -10/Exiles | Given EX-Vault access code 848 | -10/Exiles | Opened EX-Vault 855 | -10/Exiles | Found Prototype Energy Cannon 855 | -10/Exiles | Identified Latent Energy Streamer 861 | -10/Exiles | Found Prototype Device 861 | -10/Exiles | Identified Supersonic Drone Bay 927 | -10/Exiles | Exiles lab attacked by MAIN.C 1134 | -10/Exiles | Discovered new exit (range 11) 1142 | -10/Exiles | Identified exit to Mines 1143 | -10/Exiles | Left Exiles lab with Latent Energy Streamer 1143 | -10/Exiles | Entered Mines 1144 | -9/Mines | Assembled infested the area 1166 | -9/Mines | Learned Materials emergency access door positions 1586 | -9/Mines | YI-UF0 nonchalantly dropped a Grenade Launcher on the ground 1630 | -9/Mines | Found a hidden stash of uninstalled traps 1666 | -9/Mines | Discovered new exit (range 10) 1674 | -9/Mines | Identified exit to Materials 1685 | -9/Mines | Entered Materials 1685 | -8/Materials | Evolved 4 slots: Utility x3, Weapon x1 1982 | -8/Materials | Build established: Skirmisher 2826 | -8/Materials | Discovered new exit (range 3) 2828 | -8/Materials | Identified exit to Factory 3396 | -8/Materials | Discovered exit to Factory (range 5) 3624 | -8/Materials | Discovered exit to Factory (range 9) 4129 | -8/Materials | Repaired Gauss Rifle? 4407 | -8/Materials | Discovered new exit (range 10) 4434 | -8/Materials | Identified exit to Storage 4493 | -8/Materials | Entered Storage 4608 | -8/Storage | Repaired Broken Arm. Treads? 4813 | -8/Storage | Met a pair of Derelict thieves 4849 | -8/Storage | Garrison activated, responded to threat 5054 | -8/Storage | Identified exit to Garrison 5055 | -8/Storage | Entered Garrison 5088 | -8/Garrison | Discovered new exit (range 61) 5088 | -8/Garrison | Discovered new exit (range 63) 5088 | -8/Garrison | Discovered new exit (range 43) 5106 | -8/Garrison | Triggered checkpoint 5192 | -8/Garrison | Garrison Relay disabled 5318 | -8/Garrison | Triggered checkpoint 5318 | -8/Garrison | Triggered checkpoint 5346 | -8/Garrison | Core integrity fell below 50% 5360 | -8/Garrison | Core integrity fell below 20% 5387 | -8/Garrison | Lost 5 parts (1p1n2u1w) 5403 | -8/Garrison | Installed Relay Interface Framework 5412 | -8/Garrison | Learned Recycling security intel 5432 | -8/Garrison | Triggered checkpoint 5439 | -8/Garrison | Entered Recycling 5441 | -8/Recycling | Found Scrap Engine 5737 | -8/Recycling | Discovered new exit (range 15) 6342 | -8/Recycling | Build established: Commander-Mutant 6666 | -8/Recycling | System corruption reached 10% 6667 | -8/Recycling | Entered Factory 6667 | -6/Factory | Accompanied by 2 allies 6667 | -6/Factory | Evolved 4 slots: Propulsion x2, Utility x2 6948 | -6/Factory | Build established: Scavenger-Mutant 7153 | -6/Factory | Fabricated Adv. Heat Sink (x2) 7569 | -6/Factory | Build established: Mutant 7607 | -6/Factory | Cargo convoy interrupted 8078 | -6/Factory | Discovered new exit (range 88) 8078 | -6/Factory | Discovered new exit (range 103) 8774 | -6/Factory | Build established: Construct 8865 | -6/Factory | System corruption reached 10% 8877 | -6/Factory | Core integrity fell below 50% 8904 | -6/Factory | Lost 12 parts (1p3n4u4w) 8909 | -6/Factory | Core integrity fell below 20% 8924 | -6/Factory | Destroyed by C-17 Slicer with Blade Saw Last Messages --------------- 08886_ P-60 Hacker resets H-66 Slayer, system corruption cleaned. 08886_ R-10 Processor collects Great Maul. 08886_ Slug penetrates P-60 Hacker. 08886_ Slug penetrates Wall. 08887_ Slammed into U-05 Engineer. 08890_ System corrupted: Substantial component data lost. 08900_ ALERT: Suspicious intruders detected, dispatching Cutter reinforcements to area. 08906_ System corrupted: Component data lost. 08915_ Slammed into C-17 Slicer. 08915_ Destabilizing: System interference. 08915_ Arm. Scrap Engine temporarily disabled. 08916_ Slammed into C-17 Slicer. 08916_ C-17 Slicer shuts down. 08917_ Slammed into C-17 Slicer. 08919_ Destabilizing: System corrupted (+2). 08921_ G#B2YKV0VJFBXVNQZ0JGYZ=5BK 08921_ Slammed into C-17 Slicer. 08923_ Destabilizing: System corrupted (+1). 08924_ Slammed into C-17 Slicer. Map ----- +----------------------------------------------------+ | ??????# #?????????# # #???????????# | | ??????# #?????????# """ / #???????????## | | ??????+ +?????????# """ # #????????????? | | ??????# #?????????#] """ # #????????????? | | ??????# #?????????# # #?#######????? | | ??????# #?????????# # #?# ###### | | ??????# #?????????# # ### | | ??????# #?????????# ""Y"" + | | ??????# #?????????# """"" # ### | | ??????# ##+#########?########## #?# ##+### | | ??????# ?# #??????????# #?### ### ? | | ??????# ?# #??????????# #???# #?# "" | | ??????# ?#h #??????????# #???# #?# "" | | ?????## ## #??????????#+#???#+#?# "" | | ?????# #h #???????#????????????# | | ?????# # #???????# ?????#" "" | | ?????# + #???????# ?????# "" | | ?????# # #???????# ?????#" "" | | ?????# ###########?####### ?????# | | ?????# #???????????# = # ?????#####? | | ?????# #???????????#!* # ??????????? | | ?????# #???????????#*%< #% ??????????? | | ?????# ########????#! % += ??????????? | | ?????# ## *#????# #% ??????????? | | ?????# p ######% # ??????????? | | ?????/ g c%%%%c%@c%H/ #% ??????????? | | ?????# g x ########/###########?????????? | | ?????###/## % ## =!/]!]!% #?????????????? | | ?????? ###+#### /!*%= " #?????????????? | | ???? ??g????# " #????#######??? | | ??? """ ???????# " " """ #????# #??? | | ?# """ ???????# """" """" ###### #### | | ?# """ ???????# + [ < | | ?#??? ???????# """" """" ###### #### | | ?????" *#??????# """" """" #????# # | | ????? #??????# "??" """" #????####### | | ?????" ???????# ???? """" =#??????????# | | ????? ???????# ?? #??????????# | | ?????#####???????###############??????????#### | | | | | | | | | | | | | | | | | | | | | | | +----------------------------------------------------+ Best States ------------- Heat Dissipation 78 Energy Generation 17 Energy Capacity 371 Matter Stores 300 Matter Capacity 300 Sight Range 16 Robot Scan Range 15 Terrain Scan Range 16 Terrain Scan Density 210 Armor Coverage 300 Evasion (%) 50 Recoil Reduction 2 Offensive Hacking 10 Relay Coupler Types 2 Relay Coupler Value 63 Authchip Count 4 Item Schematics ----------------- Imp. Medium Armor Plating | -8/Materials | Scanalyzed Adv. Heat Sink | -8/Materials | Scanalyzed Arm. Treads | -8/Materials | Scanalyzed Gatling Laser | -8/Materials | Scanalyzed Imp. EM Shotgun | -8/Materials | Scanalyzed Lyr. Medium Armor Plating | -6/Factory | Hacked Robot Schematics ------------------ None Fabricated ------------ Adv. Heat Sink | x2 | -6/Factory | Authchip Alien Tech Used ----------------- None Achievements -------------- None Challenges ------------ None Game ------ Seed MyomerNeutronArmor Manual? 0 Play Time 01:34:30 Cumulative 300.7 hours Start 2024.04.05 @ 13:49:54 End 2024.04.05 @ 23:13:13 Sessions 3 Manual Loads 0 Difficulty Rogue Special Mode None Game No. 55 Rogue 11 Adventurer 43 Explorer 1 Win Type - Total 17 Types 6/0/5/4/1/0/1/0/0 Lore% 68 Gallery% 77 Achievement% 73 Wizard Run 0 Options --------- Layout 0 ASCII 0 Keyboard 0 Movement Numpad Keybinds 0 Fullscreen 1 Font 24/Smallcaps Map View 76x50 Zoom Use 0% Tactical HUD 1 Map Filters NONE Filters NONE Steam 1 RUN: 3e8c940a-1d99-4e9e-9579-c7dc66cf0755